fUSD/lending_fUSD_20260620
["ID","MTS","AMOUNT","RATE_DAILY","PERIOD"]
[425826666,1781945448000,-150.0,0.00029808,14]
[425826662,1781945448000,-245.15271716,0.00029808,14]
[425826631,1781945448000,-150.0,0.00029808,14]
[425826659,1781945448000,-150.66816303,0.00029808,14]
[425826629,1781945448000,-150.0,0.00029808,14]
[425826641,1781945448000,-500.0,0.00029808,14]
[425826630,1781945448000,-296.04910001,0.00029808,14]
[425826632,1781945448000,-150.0,0.00029808,14]
[425826636,1781945448000,-500.0,0.00029808,14]
[425826633,1781945448000,-150.0,0.00029808,14]
[425826638,1781945448000,-500.0,0.00029808,14]
[425826637,1781945448000,-500.0,0.00029808,14]
[425826634,1781945448000,-273.28062091,0.00029808,14]
[425826635,1781945448000,-500.0,0.00029808,14]
[425826640,1781945448000,-500.0,0.00029808,14]
[425826639,1781945448000,-160.65177913,0.00029808,14]
[425826643,1781945448000,-500.0,0.00029808,14]
[425826642,1781945448000,-500.0,0.00029808,14]
[425826645,1781945448000,-500.0,0.00029808,14]
[425826644,1781945448000,-150.0,0.00029808,14]
[425826646,1781945448000,-150.0,0.00029808,14]
[425826647,1781945448000,-500.0,0.00029808,14]
[425826649,1781945448000,-500.0,0.00029808,14]
[425826648,1781945448000,-154.94785306,0.00029808,14]
[425826651,1781945448000,-500.0,0.00029808,14]
[425826650,1781945448000,-163.51122534,0.00029808,14]
[425826652,1781945448000,-500.0,0.00029808,14]
[425826653,1781945448000,-500.0,0.00029808,14]
[425826656,1781945448000,-500.0,0.00029808,14]
[425826658,1781945448000,-150.0,0.00029808,14]
[425826684,1781945448000,-150.0,0.00029808,14]
[425826680,1781945448000,-150.0,0.00029808,14]
[425826685,1781945448000,-150.0,0.00029808,14]
[425826717,1781945448000,-500.0,0.00029808,14]
[425826718,1781945448000,-647.0,0.00029808,14]
[425826716,1781945448000,-500.0,0.00029808,14]
[425826722,1781945448000,-473.09385119,0.00029808,14]
[425826723,1781945448000,-500.0,0.00029808,14]
[425826728,1781945448000,-500.0,0.00029808,14]
[425826721,1781945448000,-647.0,0.00029808,14]
[425826724,1781945448000,-647.0,0.00029808,14]
[425826731,1781945448000,-647.0,0.00029808,14]
[425826726,1781945448000,-500.0,0.00029808,14]
[425826725,1781945448000,-150.0,0.00029808,2]
[425826729,1781945448000,-647.0,0.00029808,14]
[425826730,1781945448000,-500.0,0.00029808,14]
[425826732,1781945448000,-500.0,0.00029808,14]
[425826734,1781945448000,-500.0,0.00029808,14]
[425826735,1781945448000,-647.0,0.00029808,14]
[425826733,1781945448000,-647.0,0.00029808,14]
[425826739,1781945448000,-500.0,0.00029808,14]
[425826737,1781945448000,-500.0,0.00029808,14]
[425826740,1781945448000,-467.0,0.00029808,14]
[425826738,1781945448000,-647.0,0.00029808,14]
[425826736,1781945448000,-500.0,0.00029808,14]
[425826741,1781945448000,-647.0,0.00029808,14]
[425826742,1781945448000,-500.0,0.00029808,14]
[425826686,1781945448000,-150.0,0.00029808,14]
[425826720,1781945448000,-500.0,0.00029808,14]
[425826719,1781945448000,-500.0,0.00029808,14]
[425826727,1781945448000,-500.0,0.00029808,14]
[425826712,1781945448000,-467.0,0.00029808,14]
[425826689,1781945448000,-150.0,0.00029808,14]
[425826711,1781945448000,-500.0,0.00029808,14]
[425826699,1781945448000,-253.91261035,0.00029808,14]
[425826688,1781945448000,-150.0,0.00029808,14]
[425826690,1781945448000,-150.0,0.00029808,14]
[425826691,1781945448000,-150.0,0.00029808,14]
[425826698,1781945448000,-150.0,0.00029808,14]
[425826696,1781945448000,-150.0,0.00029808,14]
[425826697,1781945448000,-150.0,0.00029808,14]
[425826693,1781945448000,-150.0,0.00029808,14]
[425826692,1781945448000,-150.0,0.00029808,14]
[425826695,1781945448000,-150.0,0.00029808,14]
[425826700,1781945448000,-647.0,0.00029808,14]
[425826694,1781945448000,-150.0,0.00029808,14]
[425826714,1781945448000,-467.0,0.00029808,14]
[425826715,1781945448000,-647.0,0.00029808,14]
[425826702,1781945448000,-500.0,0.00029808,14]
[425826713,1781945448000,-647.0,0.00029808,14]
[425826710,1781945448000,-647.0,0.00029808,14]
[425826705,1781945448000,-500.0,0.00029808,14]
[425826709,1781945448000,-467.0,0.00029808,14]
[425826708,1781945448000,-500.0,0.00029808,14]
[425826707,1781945448000,-647.0,0.00029808,14]
[425826701,1781945448000,-647.0,0.00029808,14]
[425826704,1781945448000,-647.0,0.00029808,14]
[425826703,1781945448000,-153.75007292,0.00029808,2]
[425826706,1781945448000,-467.0,0.00029808,14]
[425826781,1781945449000,-500.0,0.00029808,14]
[425826784,1781945449000,-500.0,0.00029808,14]
[425826785,1781945449000,-500.0,0.00029808,14]
[425826783,1781945449000,-500.0,0.00029808,14]
[425826780,1781945449000,-500.0,0.00029808,14]
[425826779,1781945449000,-500.0,0.00029808,14]
[425826776,1781945449000,-500.0,0.00029808,14]
[425826778,1781945449000,-500.0,0.00029808,14]
[425826775,1781945449000,-500.0,0.00029808,14]
[425826773,1781945449000,-467.62803742,0.00029808,14]
[425826782,1781945449000,-500.0,0.00029808,14]
[425826777,1781945449000,-500.0,0.00029808,14]
[425826786,1781945449000,-500.0,0.00029808,14]
[425826801,1781945449000,-150.0,0.00029808,14]
[425826791,1781945449000,-150.0,0.00029808,14]
[425826790,1781945449000,-150.0,0.00029808,2]
[425826787,1781945449000,-500.0,0.00029808,14]
[425826788,1781945449000,-500.0,0.00029808,14]
[425826793,1781945449000,-216.02529423,0.00029808,14]
[425826803,1781945449000,-200.0,0.00029808,14]
[425826792,1781945449000,-150.0,0.00029808,14]
[425826795,1781945449000,-264.23492909,0.00029808,14]
[425826796,1781945449000,-161.57965701,0.00029808,14]
[425826797,1781945449000,-250.0,0.00029808,2]
[425826800,1781945449000,-268.26853582,0.00029808,2]
[425826774,1781945449000,-500.0,0.00029808,14]
[425826789,1781945449000,-512.36540247,0.00029808,14]
[425826771,1781945449000,-467.0,0.00029808,14]
[425826743,1781945449000,-467.0,0.00029808,14]
[425826772,1781945449000,-662.93078132,0.00029808,14]
[425826744,1781945449000,-500.0,0.00029808,14]
[425826746,1781945449000,-500.0,0.00029808,14]
[425826745,1781945449000,-467.0,0.00029808,14]
[425826747,1781945449000,-647.0,0.00029808,14]
[425826748,1781945449000,-467.0,0.00029808,14]
[425826756,1781945449000,-467.0,0.00029808,14]
[425826749,1781945449000,-500.0,0.00029808,14]
[425826750,1781945449000,-467.0,0.00029808,14]
[425826751,1781945449000,-467.0,0.00029808,14]
[425826752,1781945449000,-640.71600026,0.00029808,14]
[425826753,1781945449000,-467.0,0.00029808,14]
[425826754,1781945449000,-647.0,0.00029808,14]
[425826769,1781945449000,-467.0,0.00029808,14]
[425826755,1781945449000,-467.0,0.00029808,14]
[425826759,1781945449000,-467.0,0.00029808,14]
[425826758,1781945449000,-467.0,0.00029808,14]
[425826767,1781945449000,-647.0,0.00029808,14]
[425826760,1781945449000,-647.0,0.00029808,14]
[425826761,1781945449000,-467.0,0.00029808,14]
[425826764,1781945449000,-467.0,0.00029808,14]
[425826768,1781945449000,-467.0,0.00029808,14]
[425826766,1781945449000,-467.0,0.00029808,14]
[425826765,1781945449000,-647.0,0.00029808,14]
[425826763,1781945449000,-647.0,0.00029808,14]
[425826762,1781945449000,-467.0,0.00029808,14]
[425826770,1781945449000,-647.0,0.00029808,14]
[425826757,1781945449000,-467.0,0.00029808,14]
[425826794,1781945449000,-150.0,0.00029808,14]
[425826798,1781945449000,-250.0,0.00029808,2]
[425826802,1781945449000,-150.0,0.00029808,14]
[425826838,1781945449000,-205.84136639,0.0003003,5]
[425826837,1781945449000,-1025.2,0.00030029,30]
[425826833,1781945449000,-529.21623726,0.0003,2]
[425826834,1781945449000,-276.1084143,0.0003,2]
[425826836,1781945449000,-310.0,0.0003,2]
[425826835,1781945449000,-316.0,0.0003,2]
[425826842,1781945449000,-214.37,0.000301,2]
[425826841,1781945449000,-165.0,0.00030037,2]
[425826843,1781945449000,-286.0,0.000301,7]
[425826844,1781945449000,-1025.2,0.00030114,30]
[425826847,1781945449000,-500.0,0.00030129,30]
[425826846,1781945449000,-500.0,0.00030129,30]
[425826831,1781945449000,-6190.69,0.0003,2]
[425826848,1781945449000,-500.0,0.00030129,30]
[425826849,1781945449000,-500.0,0.00030129,30]
[425826851,1781945449000,-500.0,0.00030129,30]
[425826852,1781945449000,-500.0,0.00030129,30]
[425826854,1781945449000,-500.0,0.00030129,30]
[425826860,1781945449000,-500.0,0.00030129,30]
[425826856,1781945449000,-500.0,0.00030129,30]
[425826853,1781945449000,-500.0,0.00030129,30]
[425826858,1781945449000,-500.0,0.00030129,30]
[425826859,1781945449000,-500.0,0.00030129,30]
[425826855,1781945449000,-500.0,0.00030129,30]
[425826857,1781945449000,-500.0,0.00030129,30]
[425826799,1781945449000,-250.0,0.00029808,2]
[425826850,1781945449000,-500.0,0.00030129,30]
[425826839,1781945449000,-266.28615222,0.0003003,2]
[425826845,1781945449000,-271.633624,0.00030127,7]
[425826830,1781945449000,-940.27037928,0.0003,2]
[425826840,1781945449000,-517.08182384,0.0003003,2]
[425826807,1781945449000,-1025.2,0.00029857,30]
[425826806,1781945449000,-188.71,0.00029841,10]
[425826808,1781945449000,-200.0,0.00029887,2]
[425826811,1781945449000,-704.0,0.00029917,30]
[425826814,1781945449000,-158.0,0.00029918,30]
[425826816,1781945449000,-476.0,0.00029919,30]
[425826810,1781945449000,-156.0,0.00029917,30]
[425826813,1781945449000,-155.0,0.00029917,30]
[425826809,1781945449000,-13800.0,0.000299,10]
[425826805,1781945449000,-350.0,0.00029829,30]
[425826815,1781945449000,-156.0,0.00029918,30]
[425826812,1781945449000,-929.0,0.00029917,30]
[425826821,1781945449000,-158.0,0.0002992,30]
[425826804,1781945449000,-150.0,0.00029808,14]
[425826832,1781945449000,-431.80376273,0.0003,2]
[425826828,1781945449000,-394.42582445,0.00029989,2]
[425826824,1781945449000,-470.106932,0.0002996,2]
[425826826,1781945449000,-242.15909246,0.00029989,2]
[425826827,1781945449000,-151.0,0.00029989,2]
[425826819,1781945449000,-188.0,0.0002992,30]
[425826823,1781945449000,-1025.2,0.00029943,30]
[425826817,1781945449000,-502.0,0.00029919,5]
[425826822,1781945449000,-384.0,0.0002992,30]
[425826829,1781945449000,-271.633624,0.00029997,7]
[425826820,1781945449000,-342.0,0.0002992,30]
[425826818,1781945449000,-154.0,0.0002992,30]
[425826825,1781945449000,-349.58,0.00029969,2]
[425826896,1781945450000,-438.157559,0.0003013,7]
[425826903,1781945450000,-357.42187913,0.00030137,2]
[425826901,1781945450000,-150.0,0.00030136,2]
[425826899,1781945450000,-488.41997665,0.00030135,2]
[425826893,1781945450000,-467.43974269,0.00030129,30]
[425826891,1781945450000,-500.0,0.00030129,30]
[425826897,1781945450000,-438.157559,0.0003013,7]
[425826892,1781945450000,-500.0,0.00030129,30]
[425826895,1781945450000,-438.157559,0.0003013,7]
[425826898,1781945450000,-438.157559,0.0003013,7]
[425826907,1781945450000,-257.05,0.00030137,15]
[425826894,1781945450000,-1931607.34996668,0.0003013,7]
[425826902,1781945450000,-150.93131032,0.00030136,2]
[425826910,1781945450000,-500.0,0.00030137,3]
[425826900,1781945450000,-11689.22486945,0.00030136,30]
[425826904,1781945450000,-490.68,0.00030137,2]
[425826906,1781945450000,-250.0,0.00030137,15]
[425826909,1781945450000,-500.0,0.00030137,3]
[425826908,1781945450000,-188.71883309,0.00030137,2]
[425826913,1781945450000,-1774.0,0.00030137,120]
[425826912,1781945450000,-500.0,0.00030137,3]
[425826918,1781945450000,-600.0,0.00030137,120]
[425826911,1781945450000,-500.0,0.00030137,3]
[425826915,1781945450000,-600.0,0.00030137,120]
[425826919,1781945450000,-600.0,0.00030137,120]
[425826921,1781945450000,-600.0,0.00030137,120]
[425826905,1781945450000,-1336.9,0.00030137,120]
[425826888,1781945450000,-500.0,0.00030129,30]
[425826862,1781945450000,-500.0,0.00030129,30]
[425826885,1781945450000,-500.0,0.00030129,30]
[425826863,1781945450000,-500.0,0.00030129,7]
[425826861,1781945450000,-500.0,0.00030129,30]
[425826865,1781945450000,-500.0,0.00030129,7]
[425826875,1781945450000,-500.0,0.00030129,7]
[425826867,1781945450000,-500.0,0.00030129,7]
[425826876,1781945450000,-500.0,0.00030129,7]
[425826872,1781945450000,-500.0,0.00030129,7]
[425826869,1781945450000,-500.0,0.00030129,7]
[425826868,1781945450000,-500.0,0.00030129,7]
[425826871,1781945450000,-500.0,0.00030129,7]
[425826877,1781945450000,-500.0,0.00030129,7]
[425826866,1781945450000,-500.0,0.00030129,7]
[425826886,1781945450000,-500.0,0.00030129,30]
[425826864,1781945450000,-500.0,0.00030129,7]
[425826874,1781945450000,-500.0,0.00030129,7]
[425826873,1781945450000,-500.0,0.00030129,7]
[425826878,1781945450000,-500.0,0.00030129,7]
[425826881,1781945450000,-500.0,0.00030129,7]
[425826879,1781945450000,-500.0,0.00030129,7]
[425826883,1781945450000,-500.0,0.00030129,7]
[425826882,1781945450000,-500.0,0.00030129,7]
[425826880,1781945450000,-500.0,0.00030129,7]
[425826889,1781945450000,-500.0,0.00030129,30]
[425826916,1781945450000,-600.0,0.00030137,120]
[425826884,1781945450000,-218.41279331,0.00030129,7]
[425826887,1781945450000,-500.0,0.00030129,30]
[425826870,1781945450000,-500.0,0.00030129,7]
[425826920,1781945450000,-600.0,0.00030137,120]
[425826890,1781945450000,-500.0,0.00030129,30]
[425826917,1781945450000,-600.0,0.00030137,120]
[425826954,1781945450000,-1279.283,0.00030349,2]
[425826958,1781945450000,-934.0,0.00030349,2]
[425826959,1781945450000,-396.27,0.00030437,2]
[425826953,1781945450000,-387.0,0.00030349,2]
[425826955,1781945450000,-1229.25,0.00030349,2]
[425826956,1781945450000,-1368.605,0.00030349,2]
[425826957,1781945450000,-220.442,0.00030349,2]
[425826960,1781945450000,-200.0,0.00030438,2]
[425826961,1781945450000,-200.0,0.00030438,2]
[425826963,1781945450000,-482.4,0.0003045,2]
[425826964,1781945450000,-644.26,0.00030452,2]
[425826962,1781945450000,-350.0,0.00030439,2]
[425826965,1781945450000,-151.0,0.00030458,2]
[425826966,1781945450000,-151.0,0.00030458,2]
[425826967,1781945450000,-151.0,0.00030458,2]
[425826969,1781945450000,-151.0,0.00030458,2]
[425826970,1781945450000,-151.0,0.00030458,2]
[425826968,1781945450000,-151.0,0.00030458,2]
[425826973,1781945450000,-151.0,0.00030463,2]
[425826971,1781945450000,-151.0,0.00030458,2]
[425826976,1781945450000,-151.51,0.00030463,2]
[425826972,1781945450000,-644.29,0.00030462,2]
[425826975,1781945450000,-151.0,0.00030463,2]
[425826974,1781945450000,-268.05,0.00030463,2]
[425826977,1781945450000,-151.0,0.00030463,2]
[425826979,1781945450000,-151.0,0.00030463,2]
[425826978,1781945450000,-151.0,0.00030463,2]
[425826950,1781945450000,-1000.0,0.0003033,2]
[425826952,1781945450000,-3560.0,0.00030349,2]
[425826914,1781945450000,-500.0,0.00030137,3]
[425826949,1781945450000,-1856.76,0.0003033,2]
[425826951,1781945450000,-1228.11,0.0003033,2]
[425826922,1781945450000,-600.0,0.00030137,120]
[425826934,1781945450000,-1000.0,0.00030164,2]
[425826923,1781945450000,-600.0,0.00030137,120]
[425826926,1781945450000,-155.5271682,0.00030137,120]
[425826929,1781945450000,-193.88808942,0.00030137,2]
[425826933,1781945450000,-1000.0,0.00030164,2]
[425826928,1781945450000,-455.0,0.00030137,120]
[425826925,1781945450000,-407.0,0.00030137,120]
[425826924,1781945450000,-500.0,0.00030137,3]
[425826931,1781945450000,-200.0,0.00030137,2]
[425826932,1781945450000,-200.0,0.00030137,2]
[425826927,1781945450000,-328.0,0.00030137,120]
[425826930,1781945450000,-150.0,0.00030137,120]
[425826937,1781945450000,-1024.804243,0.00030164,2]
[425826935,1781945450000,-1000.0,0.00030164,2]
[425826948,1781945450000,-273.0,0.00030292,2]
[425826943,1781945450000,-3291.01389628,0.00030249,2]
[425826940,1781945450000,-227.86968034,0.000302,120]
[425826941,1781945450000,-1025.2,0.000302,30]
[425826938,1781945450000,-150.0,0.00030192,5]
[425826944,1781945450000,-162.16,0.00030258,7]
[425826947,1781945450000,-273.0,0.00030292,2]
[425826936,1781945450000,-1000.0,0.00030164,2]
[425826939,1781945450000,-475.03,0.000302,7]
[425826946,1781945450000,-275.26435144,0.00030292,2]
[425826945,1781945450000,-1067.8,0.00030263,2]
[425826942,1781945450000,-195.1,0.00030239,2]
[425827001,1781945451000,-151.0,0.00030466,2]
[425827010,1781945451000,-151.0,0.00030466,2]
[425827008,1781945451000,-151.0,0.00030466,2]
[425827007,1781945451000,-152.76,0.00030466,2]
[425827013,1781945451000,-151.0,0.00030466,2]
[425827016,1781945451000,-151.0,0.00030466,2]
[425827011,1781945451000,-151.0,0.00030466,2]
[425827012,1781945451000,-151.0,0.00030466,2]
[425827009,1781945451000,-151.0,0.00030466,2]
[425827014,1781945451000,-151.0,0.00030466,2]
[425827028,1781945451000,-394.42582454,0.00030537,2]
[425827017,1781945451000,-151.0,0.00030466,2]
[425827025,1781945451000,-775.4783256,0.00030535,2]
[425827026,1781945451000,-251.11897888,0.00030537,2]
[425827021,1781945451000,-500.0,0.00030499,7]
[425827022,1781945451000,-500.0,0.00030499,30]
[425827023,1781945451000,-350.0,0.00030524,16]
[425827020,1781945451000,-527.93506846,0.00030499,30]
[425827024,1781945451000,-621.78829552,0.00030535,2]
[425827029,1781945451000,-1717.0,0.00030554,10]
[425826998,1781945451000,-151.0,0.00030466,2]
[425827015,1781945451000,-151.0,0.00030466,2]
[425827004,1781945451000,-171.36,0.00030466,2]
[425826988,1781945451000,-151.0,0.00030463,2]
[425827006,1781945451000,-151.0,0.00030466,2]
[425826982,1781945451000,-151.0,0.00030463,2]
[425826980,1781945451000,-151.0,0.00030463,2]
[425826981,1781945451000,-151.34,0.00030463,2]
[425826983,1781945451000,-151.0,0.00030463,2]
[425826985,1781945451000,-151.0,0.00030463,2]
[425826984,1781945451000,-151.0,0.00030463,2]
[425826995,1781945451000,-151.0,0.00030466,2]
[425826987,1781945451000,-151.0,0.00030463,2]
[425826990,1781945451000,-151.0,0.00030466,2]
[425826991,1781945451000,-151.0,0.00030466,2]
[425827002,1781945451000,-151.0,0.00030466,2]
[425827027,1781945451000,-253.76676934,0.00030537,2]
[425826986,1781945451000,-151.0,0.00030463,2]
[425826992,1781945451000,-151.0,0.00030466,2]
[425826989,1781945451000,-151.0,0.00030466,2]
[425826994,1781945451000,-151.0,0.00030466,2]
[425826996,1781945451000,-151.0,0.00030466,2]
[425826997,1781945451000,-151.0,0.00030466,2]
[425827003,1781945451000,-151.0,0.00030466,2]
[425827000,1781945451000,-151.0,0.00030466,2]
[425827005,1781945451000,-151.0,0.00030466,2]
[425826999,1781945451000,-151.0,0.00030466,2]
[425826993,1781945451000,-151.0,0.00030466,2]
[425827031,1781945451000,-500.0,0.0003061,7]
[425827018,1781945451000,-151.0,0.00030466,2]
[425827033,1781945451000,-357.0,0.00030656,30]
[425827059,1781945451000,-342.0,0.0003092,30]
[425827062,1781945451000,-677.86074116,0.00030926,2]
[425827064,1781945451000,-283.0,0.00030959,120]
[425827061,1781945451000,-384.0,0.0003092,30]
[425827063,1781945451000,-245.0,0.00030927,30]
[425827060,1781945451000,-158.0,0.0003092,30]
[425827065,1781945451000,-253.0,0.00030959,120]
[425827066,1781945451000,-152.0,0.00030959,120]
[425827069,1781945451000,-350.0,0.00030962,2]
[425827067,1781945451000,-250.0,0.00030959,120]
[425827068,1781945451000,-390.0,0.00030959,120]
[425827070,1781945451000,-3055.34823593,0.00030994,2]
[425827072,1781945451000,-171.51459977,0.00031,14]
[425827074,1781945451000,-15000.0,0.00031,30]
[425827071,1781945451000,-8268.56232615,0.00031,30]
[425827073,1781945451000,-365.53591238,0.00031,120]
[425827075,1781945451000,-1059.30923574,0.00031,33]
[425827077,1781945451000,-1067.8,0.00031027,2]
[425827078,1781945451000,-200.0,0.0003105,2]
[425827079,1781945451000,-200.0,0.0003105,2]
[425827076,1781945451000,-150.0,0.00031011,2]
[425827080,1781945451000,-260.4103811,0.00031085,2]
[425827041,1781945451000,-291.0,0.0003078,120]
[425827056,1781945451000,-476.0,0.00030919,30]
[425827057,1781945451000,-154.0,0.0003092,30]
[425827019,1781945451000,-151.0,0.00030487,2]
[425827054,1781945451000,-158.0,0.00030918,30]
[425827032,1781945451000,-502.0,0.00030615,5]
[425827034,1781945451000,-1401.47892463,0.00030685,30]
[425827035,1781945451000,-1067.8,0.00030685,2]
[425827037,1781945451000,-306.89303632,0.00030717,2]
[425827058,1781945451000,-188.0,0.0003092,30]
[425827039,1781945451000,-200.0,0.00030743,2]
[425827036,1781945451000,-1251.72,0.00030686,2]
[425827040,1781945451000,-200.0,0.0003078,120]
[425827042,1781945451000,-219.0,0.0003078,120]
[425827044,1781945451000,-475.03,0.000308,7]
[425827038,1781945451000,-200.0,0.00030743,2]
[425827046,1781945451000,-350.0,0.0003085,2]
[425827045,1781945451000,-204.0,0.0003084,30]
[425827055,1781945451000,-156.0,0.00030918,30]
[425827053,1781945451000,-155.0,0.00030917,30]
[425827052,1781945451000,-929.0,0.00030917,30]
[425827049,1781945451000,-150.0,0.00030875,2]
[425827030,1781945451000,-500.0,0.0003061,30]
[425827050,1781945451000,-156.0,0.00030917,30]
[425827048,1781945451000,-150.0,0.00030875,2]
[425827043,1781945451000,-152.0,0.00030783,6]
[425827047,1781945451000,-152.57020975,0.00030875,2]
[425827051,1781945451000,-704.0,0.00030917,30]
[425827094,1781945452000,-1067.8,0.00031233,2]
[425827104,1781945452000,-151.0,0.00031279,2]
[425827102,1781945452000,-151.0,0.00031279,2]
[425827098,1781945452000,-644.19,0.0003127,2]
[425827101,1781945452000,-644.26,0.00031272,2]
[425827100,1781945452000,-481.96,0.0003127,2]
[425827105,1781945452000,-151.0,0.00031279,2]
[425827097,1781945452000,-350.0,0.00031255,2]
[425827095,1781945452000,-1165.72290537,0.00031245,2]
[425827093,1781945452000,-350.0,0.00031221,19]
[425827099,1781945452000,-644.29,0.0003127,2]
[425827084,1781945452000,-150.257,0.00031104,2]
[425827096,1781945452000,-3291.01389628,0.00031247,2]
[425827092,1781945452000,-1000.0,0.000312,7]
[425827090,1781945452000,-1165.72290537,0.00031151,2]
[425827088,1781945452000,-1165.72290537,0.00031121,2]
[425827086,1781945452000,-150.0,0.00031104,2]
[425827089,1781945452000,-190.0,0.0003115,2]
[425827087,1781945452000,-470.106932,0.00031118,2]
[425827081,1781945452000,-2008.71615847,0.00031103,2]
[425827083,1781945452000,-150.0,0.00031104,2]
[425827103,1781945452000,-151.0,0.00031279,2]
[425827085,1781945452000,-167.235,0.00031104,2]
[425827082,1781945452000,-150.179,0.00031104,2]
[425827091,1781945452000,-150.0,0.00031178,14]
[425827107,1781945452000,-396.26,0.00031284,2]
[425827112,1781945452000,-482.4,0.00031287,2]
[425827109,1781945452000,-151.0,0.00031285,2]
[425827134,1781945452000,-25360.0,0.0003142,2]
[425827131,1781945452000,-500.0,0.00031419,30]
[425827106,1781945452000,-151.0,0.00031283,2]
[425827133,1781945452000,-114162.90326711,0.0003142,2]
[425827130,1781945452000,-475.03,0.000314,7]
[425827129,1781945452000,-200.0,0.00031361,2]
[425827124,1781945452000,-1064.75,0.00031353,60]
[425827123,1781945452000,-1064.75,0.00031353,60]
[425827128,1781945452000,-200.0,0.00031361,2]
[425827122,1781945452000,-1064.75,0.00031353,60]
[425827120,1781945452000,-1064.75,0.00031353,60]
[425827121,1781945452000,-1064.75,0.00031353,60]
[425827132,1781945452000,-500.0,0.00031419,7]
[425827125,1781945452000,-1064.75,0.00031353,60]
[425827127,1781945452000,-1064.75,0.00031353,60]
[425827110,1781945452000,-151.0,0.00031285,2]
[425827111,1781945452000,-151.0,0.00031285,2]
[425827108,1781945452000,-151.0,0.00031285,2]
[425827116,1781945452000,-502.0,0.0003131,6]
[425827126,1781945452000,-1064.75,0.00031353,60]
[425827118,1781945452000,-1064.75,0.00031353,60]
[425827113,1781945452000,-151.0,0.00031288,2]
[425827114,1781945452000,-151.0,0.00031288,2]
[425827117,1781945452000,-1165.72290537,0.00031312,2]
[425827115,1781945452000,-1067.8,0.00031294,30]
[425827119,1781945452000,-1064.75,0.00031353,60]
[425827135,1781945454000,-151.0,0.00016103,2]
[425827138,1781945454000,-101.49307538,0.000283,2]
[425827136,1781945454000,-150.0,0.00016106,2]
[425827137,1781945454000,-204.0,0.00016262,2]
[425827142,1781945454000,-151.0,0.00030917,30]
[425827143,1781945454000,-4090.10869289,0.0003142,2]
[425827141,1781945454000,-151.0,0.00029917,30]
[425827139,1781945454000,-608.49837198,0.000283,2]
[425827140,1781945454000,-151.0,0.00028917,30]
[425827144,1781945541000,187.552872,0.00028324,120]
[425827145,1781945622000,166.35701936,0.000114,2]
[425827146,1781945653000,1321.28439093,0.00014925,2]
[425827147,1781945700000,-164.07739905,0.00014924,2]
[425827148,1781945753000,-626.17754031,0.00014848,2]
[425827149,1781945770000,-1427.10806869,0.00014848,2]
[425827150,1781945821000,-400.0,0.00014999,2]
[425827151,1781945847000,187.552872,0.0002815,120]
[425827154,1781945919000,1499.999999,0.00027397,120]
[425827155,1781946031000,-19464.44076821,0.00015,2]